bitfinex-derivatives/quotes_SOLF0:USTF0_20240918
["timestamp","ask_amount","ask_price","bid_price","bid_amount"]
[1726671127864,3.9,128.2,128.14,14.95]
[1726671128070,14.95,128.22,128.14,14.95]
[1726671128269,2.9832,128.23,128.15,16.4845]
[1726671128465,2.9832,128.23,128.18,3.9003]
[1726671128671,14.95,128.24,128.15,20.43576811]
[1726671128973,18.822794,128.25,128.19,3.9]
[1726671129174,14.95,128.25,128.19,3.9]
[1726671129673,14.95,128.25,128.16,3.038]
[1726671129674,14.95,128.24,128.16,3.038]
[1726671129871,14.95,128.22,128.16,3.038]
[1726671130177,3.8998,128.21,128.17,3.9005]
[1726671130773,3.8998,128.21,128.18,3.9005]
[1726671131376,3.87080725,128.23,128.19,3.9001]
[1726671131679,14.95,128.25,128.17,14.95]
[1726671131876,3.8992,128.23,128.19,3.9]
[1726671132075,3.8992,128.23,128.17,14.95]
[1726671132272,17.9892,128.27,128.21,3.8996]
[1726671132579,17.9892,128.27,128.19,14.95]
[1726671132873,3.8986,128.25,128.21,3.8994]
[1726671133270,3.8986,128.25,128.19,14.95]
[1726671133666,14.95,128.28,128.21,14.95]
[1726671133869,3.91468935,128.27,128.21,14.95]
[1726671134071,3.8986,128.25,128.22,3.8992]
[1726671135265,18.91737433,128.26,128.17,14.95]
[1726671135465,14.95,128.26,128.17,14.95]
[1726671135871,3.8989,128.24,128.21,3.8996]
[1726671136168,3.8989,128.24,128.17,14.95]
[1726671136473,3.8989,128.24,128.21,3.8995]
[1726671136675,3.89595691,128.25,128.17,14.95]
[1726671136676,3.8985,128.25,128.17,14.95]
[1726671136978,3.8985,128.25,128.22,3.8991]
[1726671137178,18.8482,128.26,128.19,14.95]
[1726671137478,3.8982,128.26,128.23,3.8988]
[1726671137678,3.8984,128.25,128.19,14.95]
[1726671140075,3.8982,128.26,128.23,3.899]
[1726671140285,3.8982,128.26,128.19,14.95]
[1726671140779,3.8982,128.26,128.23,3.8988]
[1726671140978,3.8982,128.26,128.19,14.95]
[1726671141177,3.8982,128.26,128.24,3.8987]
[1726671141381,3.8982,128.26,128.16,3.038]
[1726671141382,3.8979,128.27,128.21,14.95]
[1726671141773,3.8979,128.27,128.24,3.8985]
[1726671142373,3.8976,128.28,128.25,3.8982]
[1726671142570,7.70507061,128.28,128.25,3.8982]
[1726671142976,3.8978,128.27,128.24,3.8986]
[1726671143981,7.70507061,128.28,128.25,3.8984]
[1726671144184,3.8976,128.28,128.25,3.8984]
[1726671144485,3.898,128.27,128.24,3.8986]
[1726671144875,3.84402879,128.28,128.24,3.8986]
[1726671145082,3.84402879,128.28,128.22,2.9516]
[1726671145083,14.95,128.3,128.23,3.8988]
[1726671145581,3.8981,128.26,128.22,2.9516]
[1726671146783,3.8981,128.26,128.24,3.8987]
[1726671147484,3.97003054,128.27,128.22,2.9516]
[1726671147680,14.95,128.25,128.17,14.95]
[1726671147876,18.91449473,128.25,128.16,17.7538]
[1726671148179,3.8995,128.22,128.19,3.9001]
[1726671149885,3.8997,128.21,128.18,3.9004]
[1726671153383,3.8995,128.22,128.16,17.7538]
[1726671154789,3.8995,128.22,128.2,3.8999]
[1726671155587,3.8992,128.23,128.2,3.8999]
[1726671155790,3.8992,128.23,128.17,14.95]
[1726671156291,3.8989,128.24,128.21,3.8995]
[1726671156790,16.3698,128.26,128.19,14.95]
[1726671156992,18.85337183,128.26,128.19,14.95]
[1726671157492,3.90337183,128.26,128.19,14.95]
[1726671157787,3.8985,128.25,128.22,3.8991]
[1726671158089,14.95,128.28,128.2,14.95]
[1726671158391,3.8983,128.26,128.23,3.8988]
[1726671158985,3.8984,128.25,128.23,3.8988]
[1726671160086,3.8984,128.25,128.22,3.8992]
[1726671160395,3.8987,128.24,128.22,3.8992]
[1726671161390,3.8985,128.25,128.22,3.8992]
[1726671161890,3.8985,128.25,128.23,3.8989]
[1726671162296,3.8982,128.26,128.23,3.8989]
[1726671162995,3.8984,128.25,128.22,3.8992]
[1726671163198,3.96550378,128.27,128.22,3.8992]
[1726671163492,14.95,128.28,128.22,3.8992]
[1726671163691,3.8986,128.25,128.22,3.8992]
[1726671164986,3.8986,128.25,128.23,3.8989]
[1726671165593,3.87622912,128.27,128.23,3.8989]
[1726671165594,3.8983,128.26,128.23,3.8989]
[1726671165994,3.8983,128.26,128.21,3.0566]
[1726671167089,3.8983,128.26,128.23,3.8988]
[1726671167793,3.8985,128.25,128.22,3.8992]
[1726671169497,3.87622912,128.27,128.21,3.0566]
[1726671169996,3.8985,128.25,128.21,3.0566]
[1726671170197,3.8985,128.25,128.22,3.899]
[1726671171898,14.95,128.26,128.21,6.956]
[1726671172700,3.899,128.23,128.2,5.4225]
[1726671173502,14.95,128.26,128.2,3.8997]
[1726671173794,32.66215195,128.26,128.2,3.8997]
[1726671174001,3.8993,128.23,128.2,3.8997]
[1726671174197,14.95,128.26,128.19,3.9001]
[1726671174597,32.66148884,128.26,128.19,3.9001]
[1726671174790,14.95,128.26,128.19,3.9001]
[1726671174995,14.95,128.25,128.19,3.9001]
[1726671175396,47.91922019,128.25,128.19,3.9001]
[1726671175702,3.8994,128.22,128.19,3.9001]
[1726671176599,3.8992,128.23,128.2,3.8998]
[1726671177794,3.8996,128.21,128.17,14.95]
[1726671178000,9.59,128.23,128.18,9.59]
[1726671178804,3.8995,128.22,128.19,3.9]
[1726671179106,3.8995,128.22,128.19,13.49]
[1726671180403,3.8995,128.22,128.2,3.8999]
[1726671181508,3.8992,128.23,128.2,3.8999]
[1726671181709,9.59,128.24,128.2,9.59]
[1726671182099,13.4889,128.24,128.2,9.59]
[1726671182303,9.59,128.24,128.21,3.8995]
[1726671182710,3.8985,128.25,128.22,9.59]
[1726671182903,31.18106249,128.27,128.22,9.59]
[1726671182904,3.87622912,128.27,128.22,9.59]
[1726671183209,3.8983,128.26,128.22,9.59]
[1726671183609,17.72488868,128.27,128.24,9.59]
[1726671183805,3.8976,128.28,128.25,9.59]
[1726671184311,3.8976,128.28,128.25,13.4882]
[1726671184618,21.61982434,128.29,128.25,9.59]
[1726671184796,3.8973,128.29,128.27,9.59]
[1726671185002,3.8973,128.29,128.26,9.59]
[1726671185196,9.59,128.3,128.26,9.59]
[1726671185405,27.31226169,128.3,128.26,9.59]
[1726671185797,9.59,128.3,128.26,9.59]
[1726671186002,32.69228903,128.31,128.24,3.8985]
[1726671186208,15.26371702,128.3,128.24,3.8985]
[1726671186403,17.72228903,128.3,128.23,14.97]
[1726671186608,3.8977,128.28,128.23,14.97]
[1726671187005,3.8977,128.28,128.24,3.8985]
[1726671187606,3.8979,128.27,128.24,3.8985]
[1726671187801,3.8979,128.27,128.21,4.4388]
[1726671187802,3.92494929,128.28,128.21,19.4088]
[1726671188007,32.6917949,128.29,128.21,19.4088]
[1726671188214,3.8983,128.26,128.23,3.8988]
[1726671188512,21.57418996,128.28,128.23,3.8988]
[1726671188712,21.57418996,128.28,128.21,19.4088]
[1726671189301,3.8983,128.26,128.22,3.8991]
[1726671189505,14.97,128.27,128.21,2.9731]
[1726671189709,32.6917949,128.27,128.21,1.5306]
[1726671189914,32.6917949,128.27,128.21,5.43]
[1726671190402,3.8986,128.25,128.22,3.8992]
[1726671192609,5.30569506,128.28,128.21,16.5006]
[1726671192819,38.29209085,128.28,128.21,16.5006]
[1726671193017,21.61947688,128.27,128.23,3.8987]
[1726671193218,3.8979,128.27,128.21,16.5006]
[1726671193415,21.61396945,128.27,128.21,16.5006]
[1726671193610,3.8979,128.27,128.21,16.5006]
[1726671194827,3.8979,128.27,128.24,3.8986]
[1726671195423,21.61324619,128.27,128.24,3.8986]
[1726671195624,3.8979,128.27,128.24,3.8986]
[1726671196122,32.97669402,128.29,128.25,14.97]
[1726671196319,1.4129,128.31,128.25,14.97]
[1726671196320,17.7160643,128.3,128.25,14.97]
[1726671196522,17.7160643,128.29,128.25,14.97]
[1726671196721,3.897,128.3,128.27,3.8978]
[1726671197227,36.87472239,128.3,128.26,3.898]
[1726671197427,17.71696274,128.29,128.25,14.97]
[1726671197729,18.0026,128.32,128.25,14.97]
[1726671197931,3.8974,128.29,128.25,14.97]
[1726671198430,17.71647057,128.3,128.26,14.97]
[1726671198631,17.71647057,128.29,128.26,14.97]
[1726671198832,3.8967,128.31,128.27,3.8975]
[1726671199026,3.8967,128.31,128.26,14.97]
[1726671199236,32.98135843,128.32,128.26,14.97]
[1726671199532,17.65849877,128.33,128.28,3.8973]
[1726671199733,15.26279301,128.32,128.28,3.8973]
[1726671200132,16.3935,128.34,128.28,3.8973]
[1726671200133,3.8967,128.31,128.28,3.8973]
[1726671200934,3.8969,128.3,128.27,3.8977]
[1726671202432,3.8967,128.31,128.28,3.8975]
[1726671202829,15.26279301,128.33,128.26,14.97]
[1726671203233,15.26279301,128.33,128.28,3.8973]
[1726671203234,3.8966,128.31,128.28,3.8973]
[1726671204738,3.8966,128.31,128.26,14.97]
[1726671205829,3.8966,128.31,128.28,3.8973]
[1726671206033,15.26279301,128.33,128.25,14.97]
[1726671206341,14.97,128.32,128.25,14.97]
[1726671206745,14.97,128.32,128.23,14.97]
[1726671207043,14.97,128.3,128.22,18.0134]
[1726671207235,14.97,128.3,128.24,3.8985]
[1726671207436,14.97,128.29,128.22,3.0434]
[1726671207839,3.8984,128.25,128.22,6.9425]
[1726671208040,3.8984,128.25,128.22,16.5325]
[1726671208435,3.8984,128.25,128.23,9.59]
[1726671209236,3.8983,128.26,128.23,13.489]
[1726671209638,3.0828,128.32,128.24,9.59]
[1726671209838,9.59,128.29,128.24,9.59]
[1726671210038,3.8979,128.27,128.24,13.4885]
[1726671212939,3.8979,128.27,128.25,3.8984]
[1726671213940,17.69334294,128.28,128.25,9.59]
[1726671214147,9.59,128.3,128.26,13.488]
[1726671214439,3.0828,128.32,128.27,9.59]
[1726671214440,44.07231346,128.32,128.27,9.59]
[1726671214644,21.5936519,128.31,128.28,13.4875]
[1726671214840,3.8968,128.31,128.28,13.4875]
[1726671215236,3.8969,128.3,128.28,9.59]
[1726671216151,3.8969,128.3,128.28,3.8975]
[1726671218050,16.3935,128.34,128.26,14.97]
[1726671218051,16.3935,128.34,128.29,3.8971]
[1726671218238,32.94192329,128.33,128.29,3.8971]
[1726671218444,17.69635993,128.33,128.29,3.8971]
[1726671218749,3.8965,128.32,128.29,3.8971]
[1726671219150,15.24503929,128.33,128.28,3.8974]
[1726671219351,3.8964,128.32,128.28,3.8974]
[1726671219551,21.59275993,128.32,128.28,3.8974]
[1726671219746,3.8964,128.32,128.28,3.8974]
[1726671219945,3.8966,128.31,128.28,3.8974]
[1726671221247,3.897,128.3,128.27,5.3292]
[1726671222553,3.897,128.3,128.28,3.8975]
[1726671223453,3.8967,128.31,128.28,3.8975]
[1726671223650,32.926701,128.33,128.28,14.97]
[1726671223856,17.6879145,128.33,128.28,14.97]
[1726671224155,2.9187,128.37,128.3,14.97]
[1726671224355,3.8956,128.35,128.31,3.8964]
[1726671225155,3.8957,128.34,128.31,3.8964]
[1726671225847,14.97,128.35,128.28,3.0245]
[1726671226254,3.8965,128.32,128.28,6.9218]
[1726671226451,17.69223002,128.34,128.28,3.0245]
[1726671226758,47.89996375,128.33,128.27,1.4315]
[1726671226949,47.89996375,128.33,128.27,5.3291]
[1726671226950,3.8967,128.31,128.27,5.3291]
[1726671227151,7.85598585,128.31,128.27,5.3291]
[1726671227560,3.8969,128.3,128.27,5.3291]
[1726671227860,14.97,128.31,128.23,14.97]
[1726671228056,3.8974,128.29,128.23,14.97]
[1726671228360,14.97,128.28,128.22,1.5]
[1726671229161,32.64883128,128.28,128.22,1.5]
[1726671229462,17.67883128,128.27,128.21,2.868]
[1726671229762,21.57713128,128.26,128.21,2.708]
[1726671229962,3.8983,128.26,128.21,2.708]
[1726671230461,3.8983,128.26,128.21,6.6076]
[1726671230849,21.56371198,128.27,128.21,17.678]
[1726671231053,21.56371198,128.27,128.22,3.8993]
[1726671231559,3.8982,128.26,128.21,17.678]
[1726671231961,17.66581198,128.27,128.21,2.708]
[1726671232149,3.8984,128.25,128.21,1.4218]
[1726671232964,3.98009356,128.24,128.14,1.5]
[1726671233258,3.88958369,128.23,128.18,3.9003]
[1726671233459,3.8992,128.23,128.18,3.9003]
[1726671233758,3.85486223,128.24,128.18,14.97]
[1726671234062,3.8986,128.25,128.2,14.97]
[1726671234361,17.66915518,128.27,128.2,14.97]
[1726671234565,3.8981,128.26,128.21,3.8994]
[1726671235259,3.8984,128.25,128.21,3.8994]
[1726671235651,17.66949672,128.27,128.18,14.97]
[1726671235853,341.296,128.3,128.18,14.97]
[1726671235854,32.63949672,128.26,128.18,14.97]
[1726671236061,14.97,128.26,128.18,18.8703]
[1726671236363,14.97,128.25,128.17,14.97]
[1726671236561,1.5222,128.24,128.16,5.32]
[1726671236756,5.3650876,128.24,128.16,5.32]
[1726671237061,14.97,128.21,128.15,1.4577]
[1726671237361,18.81291673,128.21,128.15,1.4577]
[1726671237553,3.84291673,128.21,128.15,1.4577]
[1726671237749,17.8808,128.23,128.15,1.4577]
[1726671238057,3.9001,128.2,128.15,1.4577]
[1726671238252,3.9001,128.2,128.16,3.9009]
[1726671240256,6.73693202,128.23,128.15,16.4277]
[1726671240766,21.70693202,128.23,128.15,16.4277]
[1726671241252,14.97,128.21,128.14,1.5]
[1726671241457,14.97,128.21,128.12,14.97]
[1726671242760,17.65495403,128.22,128.14,14.97]
[1726671243163,3.9001,128.2,128.16,3.901]
[1726671244067,3.9003,128.19,128.16,3.901]
[1726671244561,3.9003,128.19,128.16,3.881]
[1726671245260,3.9007,128.18,128.13,14.97]
[1726671245767,3.9007,128.18,128.14,3.9015]
[1726671245965,3.9012,128.16,128.11,17.9994]
[1726671246169,14.97,128.19,128.11,17.9994]
[1726671246367,14.97,128.19,128.12,3.9021]
[1726671247057,14.97,128.19,128.13,3.9019]
[1726671247261,3.9011,128.17,128.13,3.9019]
[1726671249072,3.9011,128.17,128.14,3.9017]
[1726671249272,3.9006,128.18,128.14,3.9017]
[1726671249469,3.9006,128.18,128.13,14.97]
[1726671250372,3.9003,128.19,128.13,14.97]
[1726671250771,3.9001,128.2,128.17,3.9008]
[1726671251075,343.73693202,128.23,128.17,3.9008]
[1726671251279,3.8995,128.22,128.18,3.9003]
[1726671251979,3.8997,128.21,128.18,3.9003]
[1726671252181,6.73693202,128.23,128.15,14.97]
[1726671252477,6.73693202,128.23,128.14,1.5176]
[1726671252478,3.9004,128.19,128.14,1.5176]
[1726671252674,14.97,128.22,128.15,3.9013]
[1726671252874,14.97,128.21,128.14,1.5176]
[1726671253081,3.901,128.17,128.11,17.9994]
[1726671253570,3.9006,128.18,128.11,17.9994]
[1726671253775,3.9006,128.18,128.14,3.9016]
[1726671254777,3.9003,128.19,128.13,14.97]
[1726671255477,3.9003,128.19,128.16,3.9009]
[1726671255979,3.9001,128.2,128.17,3.9008]
[1726671256181,14.97,128.22,128.15,14.97]
[1726671256580,3.9006,128.18,128.14,3.9016]
[1726671256773,14.97,128.19,128.11,3.0294]
[1726671257380,3.9011,128.16,128.13,3.902]
[1726671257580,14.97,128.19,128.13,3.902]
[1726671257777,3.901,128.17,128.14,3.9017]
[1726671258482,14.97,128.2,128.15,3.9013]
[1726671258784,351.97,128.22,128.14,14.97]
[1726671258984,3.8997,128.21,128.16,14.97]
[1726671259187,337.0,128.22,128.16,14.97]
[1726671259483,16.4922,128.24,128.16,14.97]
[1726671259678,1.4822,128.24,128.19,3.9]
[1726671259874,3.86985032,128.23,128.17,14.97]
[1726671260078,1.4822,128.24,128.16,14.97]
[1726671260079,16.4522,128.24,128.16,14.97]
[1726671260385,3.8998,128.21,128.16,14.97]
[1726671260779,14.97,128.22,128.14,16.505]
[1726671262283,3.9005,128.19,128.15,3.9012]
[1726671262479,14.97,128.22,128.15,3.9012]
[1726671262675,14.97,128.22,128.14,16.505]
[1726671262880,3.9004,128.19,128.14,16.505]
[1726671263375,3.9004,128.19,128.16,3.901]
[1726671263786,14.97,128.22,128.17,3.9006]
[1726671263980,20.28943653,128.24,128.16,14.97]
[1726671264678,14.97,128.22,128.14,1.535]
[1726671265687,3.9007,128.18,128.14,1.535]
[1726671266081,3.9003,128.19,128.15,3.9013]
[1726671266490,14.97,128.21,128.15,3.9013]
[1726671266787,3.9004,128.19,128.15,3.9013]
[1726671267089,14.97,128.21,128.15,3.9013]
[1726671267985,3.9005,128.18,128.15,3.9013]
[1726671268487,3.9005,128.19,128.16,3.9011]
[1726671269690,3.9005,128.19,128.17,3.9008]
[1726671269886,20.28943653,128.24,128.15,14.97]
[1726671270285,3.8997,128.21,128.18,3.9004]
[1726671272088,14.97,128.22,128.15,14.97]
[1726671272784,3.9003,128.19,128.16,3.901]
[1726671273686,20.28943653,128.24,128.15,14.97]
[1726671274090,3.9001,128.2,128.15,14.97]
[1726671275094,3.9003,128.19,128.16,3.9009]
[1726671275394,20.28943653,128.24,128.15,14.97]
[1726671275794,3.8998,128.21,128.18,3.9003]
[1726671276592,3.8994,128.22,128.19,3.9002]
[1726671277493,3.8992,128.23,128.2,3.8999]
[1726671277693,3.83723653,128.24,128.18,14.97]
[1726671278085,2.9435,128.27,128.2,14.97]
[1726671278291,351.97,128.28,128.2,14.97]
[1726671278489,351.97,128.28,128.21,16.3875]
[1726671278795,3.8979,128.27,128.23,3.8988]
[1726671279898,340.8976,128.28,128.21,16.3875]
[1726671280297,340.8976,128.28,128.24,3.8985]
[1726671280693,337.0,128.28,128.23,14.97]
[1726671281295,340.8976,128.28,128.24,3.8985]
[1726671281600,3.8976,128.28,128.24,3.8985]
[1726671284506,3.8976,128.28,128.25,3.8983]
[1726671285008,14.97,128.3,128.25,3.8983]
[1726671285009,3.8973,128.29,128.25,3.8983]
[1726671287204,3.8975,128.28,128.25,3.8983]
[1726671287506,14.97,128.3,128.22,3.0306]
[1726671288603,14.97,128.3,128.24,3.8985]
[1726671288604,3.8976,128.28,128.24,3.8985]
[1726671289510,3.7776,128.28,128.24,3.8985]
[1726671289714,3.7776,128.28,128.22,3.0306]
[1726671290202,3.7776,128.28,128.24,3.8984]
[1726671290403,3.7776,128.28,128.23,14.97]
[1726671290601,3.88797878,128.31,128.23,14.97]
[1726671290801,3.88797878,128.31,128.25,14.97]
[1726671291312,3.8971,128.3,128.25,14.97]
[1726671291805,1.5347,128.34,128.26,14.97]
[1726671292305,1.5347,128.34,128.28,3.8973]
[1726671293207,3.8964,128.32,128.28,3.8973]
[1726671293403,3.90834547,128.31,128.28,3.8973]
[1726671293808,3.8968,128.31,128.27,3.8977]
[1726671294013,7.72013057,128.31,128.27,3.8977]
[1726671294513,1.5347,128.34,128.28,3.8973]
[1726671294514,3.8965,128.32,128.28,3.8973]
[1726671295413,3.8965,128.32,128.26,14.97]
[1726671296115,3.8965,128.32,128.28,3.8973]
[1726671296518,3.8965,128.32,128.29,3.8971]
[1726671297709,3.8961,128.33,128.29,3.8971]
[1726671298715,3.8963,128.32,128.29,3.8971]
[1726671299510,3.8966,128.31,128.28,3.8974]
[1726671300011,7.77071278,128.31,128.27,6.8015]
[1726671300209,3.897,128.3,128.27,5.3241]
[1726671300407,14.97,128.33,128.25,14.97]
[1726671300608,3.8760627,128.29,128.23,19.3628]
[1726671301511,3.8975,128.28,128.25,3.8982]
[1726671301714,3.94548007,128.29,128.23,19.3628]
[1726671302014,3.83913859,128.29,128.23,19.3628]
[1726671302214,14.97,128.31,128.23,19.3628]
[1726671302417,3.8973,128.29,128.25,3.8983]
[1726671302608,7.82965754,128.29,128.25,3.8983]
[1726671302814,3.8973,128.29,128.23,19.3628]
[1726671303517,7.81717634,128.29,128.23,19.3628]
[1726671303718,3.8973,128.29,128.23,19.3628]
[1726671303918,3.8973,128.29,128.25,3.8982]
[1726671304422,7.87061147,128.29,128.23,19.3628]
[1726671304619,3.8173,128.29,128.25,3.8982]
[1726671305124,7.79881037,128.29,128.25,3.8982]
[1726671305620,3.897,128.3,128.23,19.2428]
[1726671305825,3.897,128.3,128.25,14.97]
[1726671306518,7.7783508,128.31,128.25,14.97]
[1726671306724,3.8816508,128.31,128.27,3.8975]
[1726671307119,1.5292,128.32,128.25,14.97]
[1726671307323,1.5292,128.32,128.23,19.2428]
[1726671307625,3.8979,128.27,128.23,19.2428]
[1726671307822,3.9495241,128.27,128.2,14.97]
[1726671308014,14.97,128.28,128.2,14.97]
[1726671308212,3.8982,128.26,128.2,14.97]
[1726671308624,3.8982,128.26,128.22,3.8991]
[1726671308924,14.97,128.26,128.18,14.97]
[1726671309536,3.8992,128.23,128.18,14.97]
[1726671309824,3.8992,128.23,128.17,2.9437]
[1726671309825,14.97,128.24,128.17,2.9437]
[1726671310020,3.8998,128.21,128.17,6.8444]
[1726671310221,3.8998,128.21,128.17,5.3677]
[1726671310418,14.97,128.23,128.15,14.97]
[1726671310831,3.9001,128.2,128.16,3.901]
[1726671311325,3.9001,128.2,128.17,3.9008]
[1726671311525,3.8997,128.21,128.17,3.9008]
[1726671312023,3.8995,128.22,128.18,3.9004]
[1726671312929,3.8995,128.22,128.19,3.9002]
[1726671313118,3.8992,128.23,128.19,3.9002]
[1726671313627,3.8993,128.22,128.19,3.9002]
[1726671313817,3.8993,128.22,128.18,18.8704]
[1726671315729,3.8997,128.21,128.17,5.3424]
[1726671316131,14.97,128.24,128.17,5.3424]
[1726671316326,14.97,128.23,128.14,14.97]
[1726671316731,3.9004,128.19,128.15,3.9012]
[1726671317033,3.9004,128.19,128.14,14.97]
[1726671317233,3.93559718,128.2,128.14,14.97]
[1726671317532,3.9001,128.2,128.16,3.9009]
[1726671317735,7.8107167,128.2,128.16,3.9009]
[1726671318033,3.9001,128.2,128.16,3.9009]
[1726671318426,7.8563788,128.2,128.16,3.9009]
[1726671319432,3.8998,128.21,128.17,3.9007]
[1726671319639,3.8998,128.21,128.17,3.8607]
[1726671320434,14.97,128.24,128.18,3.9005]
[1726671320634,14.97,128.24,128.16,14.97]
[1726671321631,14.97,128.24,128.17,3.9007]
[1726671322133,3.8999,128.21,128.17,3.9007]
[1726671322342,3.92232435,128.2,128.17,3.9007]
[1726671322634,14.97,128.24,128.17,3.9007]
[1726671322834,3.9,128.2,128.17,3.9007]
[1726671323037,7.89686803,128.2,128.17,3.9007]
[1726671324233,3.8997,128.21,128.18,3.9005]
[1726671326442,7.86476498,128.2,128.17,3.9007]
[1726671326735,3.96486498,128.2,128.15,1.4841]
[1726671327037,14.97,128.23,128.15,5.3854]
[1726671327240,14.97,128.21,128.15,5.3854]
[1726671327940,14.97,128.21,128.15,1.4841]
[1726671328237,14.97,128.19,128.12,14.97]
[1726671328431,7.7191174,128.18,128.12,14.97]
[1726671328635,3.9007,128.18,128.12,14.97]
[1726671329141,7.726143,128.18,128.15,3.9014]
[1726671329337,3.9003,128.19,128.14,14.97]
[1726671329640,7.74018453,128.19,128.14,14.97]
[1726671330838,7.74018453,128.19,128.16,3.901]
[1726671331233,3.9006,128.18,128.12,14.97]
[1726671332245,3.9006,128.18,128.14,3.9015]
[1726671333239,3.83988453,128.19,128.16,3.901]
[1726671333546,14.97,128.21,128.16,3.901]
[1726671334640,3.9004,128.19,128.16,3.901]
[1726671334838,3.99007565,128.18,128.15,3.9013]
[1726671335138,3.9004,128.19,128.12,14.97]
[1726671335734,3.87882819,128.2,128.14,14.97]
[1726671335933,351.97,128.23,128.17,3.9006]
[1726671336241,3.8998,128.21,128.14,14.97]
[1726671336441,3.8998,128.21,128.18,3.9005]
[1726671336649,337.0,128.23,128.16,14.97]
[1726671337354,337.0,128.23,128.17,3.9007]
[1726671337537,353.4864,128.25,128.17,3.9007]
[1726671337937,3.8998,128.21,128.17,3.9007]
[1726671339638,3.899,128.23,128.2,3.8999]
[1726671340345,338.5164,128.25,128.2,3.8999]
[1726671341138,3.8988,128.24,128.2,3.8999]
[1726671341343,338.5164,128.25,128.2,3.8999]
[1726671341844,3.8991,128.23,128.2,3.8999]
[1726671342045,14.97,128.23,128.17,1.4095]
[1726671342247,3.9001,128.2,128.16,1.5158]
[1726671342447,3.88347049,128.19,128.17,3.9007]
[1726671342749,3.9004,128.19,128.13,14.97]
[1726671342948,3.94629593,128.18,128.15,3.9012]
[1726671343446,7.84689593,128.18,128.15,3.9012]
[1726671343756,7.84689593,128.18,128.13,14.97]
[1726671344043,3.94629593,128.18,128.13,14.97]
[1726671344242,3.9003,128.19,128.15,3.9014]
[1726671344751,3.89834478,128.18,128.15,3.9014]
[1726671345445,3.9,128.2,128.16,3.901]
[1726671345951,7.79912554,128.2,128.16,3.901]
[1726671346149,7.79912554,128.2,128.17,3.9008]
[1726671346349,7.79912554,128.2,128.14,14.97]
[1726671346744,3.9003,128.19,128.14,14.97]
[1726671347251,7.79922554,128.2,128.16,3.9011]
[1726671347451,3.89912554,128.2,128.12,2.8631]
[1726671347652,14.97,128.21,128.12,2.8631]
[1726671348849,3.9007,128.18,128.15,3.9014]
[1726671349047,7.80598617,128.18,128.15,3.9014]
[1726671349443,7.80598617,128.18,128.15,3.8814]
[1726671349850,3.90528617,128.18,128.15,3.8814]
[1726671350652,3.90528617,128.18,128.12,2.8631]
[1726671350653,3.9009,128.17,128.12,2.8631]
[1726671350850,7.82024098,128.17,128.12,2.8631]
[1726671351042,3.9006,128.18,128.14,3.9017]
[1726671351243,14.97,128.19,128.12,2.8631]
[1726671351455,22.79668455,128.19,128.15,3.9013]
[1726671352951,7.82668455,128.19,128.15,3.9013]
[1726671353655,3.9007,128.18,128.14,18.8716]
[1726671357856,3.9008,128.17,128.14,14.97]
[1726671358057,3.92628455,128.19,128.12,17.8331]
[1726671358255,354.9994,128.21,128.12,17.8331]